[Event "56th Rubinstein Memorial D 2020"]
[Site "Polanica Zdroj"]
[Date "2020.08.20"]
[Round "6.19"]
[White "Maj, Samuel"]
[Black "Lisiecki, Robert"]
[Result "0-1"]
[ECO "A50"]
[WhiteElo "1188"]
[BlackElo "1749"]
[Annotator "NA RC"]
[PlyCount "94"]
[EventDate "2020.08.15"]
[EventType "swiss"]
[EventCountry "POL"]
[SourceTitle "playchess.com"]
[Source "ChessBase"]
[SourceQuality "1"]
[TimeControl "40/5400+30:1800+30"]

1. d4 {[%emt 0:00:00]} Nf6 {[%emt 0:00:00]} 2. c4 {[%emt 0:00:00]} Nc6 {[%emt 0:00:00]} 3. Nf3 {[%emt 0:00:22]} e6 {[%emt 0:00:00]} 4. Nc3 {[%emt 0:04:23]} Bb4 {[%emt 0:00:00]} 5. Bg5 {[%emt 0:01:10]} d6 {[%emt 0:02:57]} 6. Qc2 {[%emt 0:06:27]} a5 {[%emt 0:00:25]} 7. e3 {[%emt 0:00:46]} O-O {[%emt 0:00:21]} 8. Bd3 {[%emt 0:00:34]} h6 {[%emt 0:01:09]} 9. Bh4 {[%emt 0:00:50]} e5 {[%emt 0:01:08]} 10. d5 {[%emt 0:05:56]} Nb8 {[%emt 0:00:45]} 11. Nd2 {[%emt 0:01:19]} Nbd7 {[%emt 0:05:55]} 12. Bxf6 {[%emt 0:05:21]} Nxf6 {[%emt 0:00:25]} 13. O-O {[%emt 0:00:31]} Bxc3 {[%emt 0:00:04]} 14. Qxc3 {[%emt 0:00:39]} Qe7 {[%emt 0:02:15]} 15. Qc2 {[%emt 0:03:28]} Nd7 {[%emt 0:08:46]} 16. f4 {[%emt 0:06:49]} Nc5 {[%emt 0:01:34]} 17. f5 {[%emt 0:01:07]} Nxd3 {[%emt 0:15:43]} 18. Qxd3 {[%emt 0:00:09]} e4 {[%emt 0:03:17]} 19. Qe2 {[%emt 0:12:32]} f6 {[%emt 0:02:08]} 20. Rf4 {[%emt 0:01:29]} Qe5 {[%emt 0:00:27]} 21. Nxe4 {[%emt 0:14:33]} Bxf5 {[%emt 0:01:01]} 22. Ng3 {[%emt 0:00:39]} Bh7 {[%emt 0:00:55]} 23. Raf1 {[%emt 0:02:31]} a4 {[%emt 0:01:17]} 24. Nf5 {[%emt 0:03:42]} Bxf5 {[%emt 0:00:42]} 25. Rxf5 {[%emt 0:00:02]} Qe4 {[%emt 0:00:32]} 26. R5f4 {[%emt 0:00:21]} Qe5 {[%emt 0:01:08]} 27. Rf5 {[%emt 0:00:18]} Qe4 {[%emt 0:01:55]} 28. R5f4 {[%emt 0:01:19]} Qe7 {[%emt 0:00:47]} 29. a3 {[%emt 0:01:02]} c6 {[%emt 0:01:05]} 30. dxc6 {[%emt 0:02:15]} bxc6 {[%emt 0:00:42]} 31. Rd4 {[%emt 0:00:46]} Rfe8 {[%emt 0:02:44]} 32. Rfd1 {[%emt 0:02:13]} Rab8 {[%emt 0:05:14]} 33. Rxd6 {[%emt 0:01:19]} Qe5 {[%emt 0:02:06]} 34. R6d2 {[%emt 0:01:06]} Rb3 {[%emt 0:01:39]} 35. e4 {[%emt 0:02:45]} f5 {[%emt 0:02:41]} 36. Rd8 {[%emt 0:02:09]} fxe4 {[%emt 0:00:16]} 37. Rxe8+ {[%emt 0:01:17]} Qxe8 {[%emt 0:00:51]} 38. Qf2 {[%emt 0:02:15]} e3 {[%emt 0:03:36]} 39. Qe2 {[%emt 0:00:45]} Qe7 {[%emt 0:02:06]} 40. Re1 {[%emt 0:04:03]} Qf6 {[%emt 0:03:07]} 41. h3 {[%emt 0:30:28]} Qd4 {[%emt 0:35:14]} 42. Qg4 {[%emt 0:02:33]} Qxg4 {[%emt 0:01:46]} 43. hxg4 {[%emt 0:00:02]} Kf7 {[%emt 0:00:42]} 44. Re2 {[%emt 0:00:43]} Ke6 {[%emt 0:00:25]} 45. Kh2 {[%emt 0:00:37]} Ke5 {[%emt 0:00:06]} 46. Kg3 {[%emt 0:00:14]} Ke4 {[%emt 0:00:09]} 47. Re1 {[%emt 0:00:49]} Rxb2 {[%emt 0:00:38]} 0-1

[Event "56th Rubinstein Memorial D 2020"]
[Site "Polanica Zdroj"]
[Date "2020.08.20"]
[Round "6.20"]
[White "Zarzecki, Dymitr Stanislaw"]
[Black "Perek, Oskar"]
[Result "1-0"]
[ECO "A12"]
[WhiteElo "1596"]
[BlackElo "1447"]
[Annotator "NA RC"]
[PlyCount "69"]
[EventDate "2020.08.15"]
[EventType "swiss"]
[EventCountry "POL"]
[SourceTitle "playchess.com"]
[Source "ChessBase"]
[SourceQuality "1"]
[TimeControl "40/5400+30:1800+30"]

1. Nf3 {[%emt 0:00:00]} d5 {[%emt 0:00:00]} 2. c4 {[%emt 0:00:00]} c6 {[%emt 0:00:00]} 3. b3 {[%emt 0:00:00]} Nf6 {[%emt 0:01:00]} 4. Bb2 {[%emt 0:00:07]} Bg4 {[%emt 0:01:40]} 5. g3 {[%emt 0:02:47]} e6 {[%emt 0:02:33]} 6. Bg2 {[%emt 0:01:46]} Bc5 {[%emt 0:01:43]} 7. O-O {[%emt 0:00:23]} Nbd7 {[%emt 0:00:39]} 8. d4 {[%emt 0:00:30]} Bd6 {[%emt 0:00:08]} 9. Nbd2 {[%emt 0:03:37]} Qc7 {[%emt 0:03:01]} 10. Rc1 {[%emt 0:05:33]} h5 {[%emt 0:02:52]} 11. c5 {[%emt 0:11:48]} Be7 {[%emt 0:00:21]} 12. b4 {[%emt 0:01:40]} O-O-O {[%emt 0:02:36]} 13. Qa4 {[%emt 0:19:36]} a6 {[%emt 0:00:13]} 14. Qb3 {[%emt 0:06:54]} Rdg8 {[%emt 0:00:45]} 15. a4 {[%emt 0:05:55]} g5 {[%emt 0:02:07]} 16. Ne5 {[%emt 0:01:56]} Nxe5 {[%emt 0:01:22]} 17. dxe5 {[%emt 0:00:07]} Nd7 {[%emt 0:00:10]} 18. f3 {[%emt 0:01:26]} Bf5 {[%emt 0:01:05]} 19. e4 {[%emt 0:00:56]} Bg6 {[%emt 0:00:49]} 20. exd5 {[%emt 0:02:28]} cxd5 {[%emt 0:00:32]} 21. Rfe1 {[%emt 0:02:01]} g4 {[%emt 0:00:28]} 22. f4 {[%emt 0:06:36]} h4 {[%emt 0:04:49]} 23. Bd4 {[%emt 0:00:20]} hxg3 {[%emt 0:01:28]} 24. hxg3 {[%emt 0:00:14]} Be4 {[%emt 0:01:21]} 25. Nxe4 {[%emt 0:03:08]} dxe4 {[%emt 0:00:11]} 26. Bxe4 {[%emt 0:00:19]} Rh3 {[%emt 0:02:14]} 27. c6 {[%emt 0:01:01]} Qb8 {[%emt 0:00:49]} 28. cxb7+ {[%emt 0:07:07]} Kd8 {[%emt 0:00:02]} 29. Rc8+ {[%emt 0:01:03]} Qxc8 {[%emt 0:00:02]} 30. bxc8=Q+ {[%emt 0:01:49]} Kxc8 {[%emt 0:00:13]} 31. Bf2 {[%emt 0:01:10]} Rgh8 {[%emt 0:00:36]} 32. Qc3+ {[%emt 0:02:28]} Kd8 {[%emt 0:00:34]} 33. Rd1 {[%emt 0:00:38]} f5 {[%emt 0:00:37]} 34. exf6 {[%emt 0:04:54]} Bxf6 {[%emt 0:00:24]} 35. Qxf6+ {[%emt 0:00:39]} 1-0

[Event "56th Rubinstein Memorial D 2020"]
[Site "Polanica Zdroj"]
[Date "2020.08.21"]
[Round "7.1"]
[White "Gromczak, Dariusz"]
[Black "Szczygiel, Jakub"]
[Result "1-0"]
[ECO "B23"]
[WhiteElo "1785"]
[BlackElo "1802"]
[Annotator "NA"]
[PlyCount "59"]
[EventDate "2020.08.15"]
[EventType "swiss"]
[EventCountry "POL"]
[SourceTitle "playchess.com"]
[Source "ChessBase"]
[SourceQuality "1"]
[TimeControl "40/5400+30:1800+30"]

{[%evp 8,52,62,43,39,46,64,56,68,59,67,62,87,86,32767,79,128,126,155,32767,147,157,203,168,359,370,351,374,400,32767,32767,32767,32767,337,316,322,340,319,325,331,517,574,550,602,555,647,587]} 1. e4 {[%emt 0:00:00]} c5 {[%emt 0:00:00]} 2. Nc3 {[%emt 0:00:00]} g6 {[%emt 0:00:00]} 3. d4 {[%emt 0:00:10]} Bg7 {[%emt 0:00:48]} 4. d5 {[%emt 0:00:30]} d6 {[%emt 0:00:24]} 5. Bb5+ {[%emt 0:00:17]} Nd7 {[%emt 0:01:03]} 6. a4 {[%emt 0:00:19]} Ngf6 {[%emt 0:00:48]} 7. Nf3 {[%emt 0:00:55]} O-O {[%emt 0:00:16]} 8. O-O {[%emt 0:00:18]} a6 {[%emt 0:00:44]} 9. Be2 {[%emt 0:00:23]} h6 {[%emt 0:00:19] [#] A43: Schmid Benoni.} 10. Nd2 $146 {[%emt 0:00:58]} ({Predecessor:} 10. h3 Ne8 11. Bf4 Ne5 12. Nxe5 dxe5 13. Be3 Qc7 14. Qd2 Kh7 15. a5 Nd6 16. f4 f5 17. fxe5 Bxe5 18. Bxh6 {1-0 (34) Stern,G (2015)-Eschle,H (1880) Bad Wiessee 2019}) 10... Nh7 {[%emt 0:02:03]} 11. Nc4 {[%emt 0:03:15]} Ne5 {[%emt 0:00:41]} 12. Nxe5 {[%emt 0:05:36]} dxe5 {[%emt 0:00:08]} 13. Be3 {[%emt 0:01:33]} b6 {[%emt 0:00:20]} 14. a5 {[%emt 0:00:15]} Bd7 {[%emt 0:00:35]} (14... b5 $16) 15. Qd2 {[%emt 0:04:04]} g5 $2 {[%emt 0:00:32]} (15... b5 16. Bxc5 f5) 16. axb6 {[%emt 0:02:10]} Qxb6 {[%emt 0:00:22] [#]} 17. b4 $1 {[%emt 0:00:30]} f5 {[%emt 0:01:58]} 18. Bxc5 {[%emt 0:05:15]} Qf6 {[%emt 0:00:13]} 19. d6 {[%emt 0:08:04]} exd6 {[%emt 0:04:17]} 20. Qxd6 {[%emt 0:07:06]} Qxd6 {[%emt 0:00:37]} 21. Bxd6 {[%emt 0:00:03]} Rfc8 {[%emt 0:01:09]} 22. Bc5 {[%emt 0:14:45]} ({Not} 22. Bxa6 Rxc3 23. Bc4+ {[%mdl 64] Discovered Attack} Rxc4 $14) 22... Bf8 {[%emt 0:00:32]} 23. Bxa6 {[%emt 0:01:16]} Rxa6 {[%emt 0:03:32]} (23... Rcb8 {keeps fighting.} 24. Nd5 Kg7) 24. Rxa6 {[%emt 0:01:28]} Bxc5 {[%emt 0:00:02]} 25. bxc5 {[%emt 0:00:43]} Rxc5 {[%emt 0:00:03]} 26. Rd1 {[%emt 0:06:02]} Nf8 $18 {[%emt 0:01:00]} 27. Nd5 {[%emt 0:00:42]} Bb5 {[%emt 0:01:26]} 28. Ra5 {[%emt 0:01:23]} Ne6 {[%emt 0:01:54]} 29. Ne7+ {[%emt 0:03:29]} Kf7 {[%emt 0:00:13]} 30. Nxf5 {[%emt 0:00:11]} 1-0

[Event "56th Rubinstein Memorial D 2020"]
[Site "Polanica Zdroj"]
[Date "2020.08.21"]
[Round "7.6"]
[White "Bukala, Weronika"]
[Black "Szmidt, Przemyslaw"]
[Result "0-1"]
[ECO "C48"]
[WhiteElo "1504"]
[BlackElo "1831"]
[Annotator "NA"]
[PlyCount "68"]
[EventDate "2020.08.15"]
[EventType "swiss"]
[EventCountry "POL"]
[SourceTitle "playchess.com"]
[Source "ChessBase"]
[SourceQuality "1"]
[TimeControl "40/5400+30:1800+30"]

{[%evp 16,68,12,32767,21,32767,5,32767,22,15,20,8,0,29,50,56,104,32767,-161,32767,-163,-178,-150,-162,-123,-94,-108,32767,-130,-154,-123,-182,32767,-258,-225,-252,-256,-447,-471,-470,-465,-642,-701,-677,32767,32767,-2077,-2597,-847,32767,-798,-29996,-29997,-29997,-892]} 1. e4 {[%emt 0:00:16]} e5 {[%emt 0:00:02]} 2. Nf3 {[%emt 0:00:07]} Nc6 {[%emt 0:00:12]} 3. Bb5 {[%emt 0:00:05]} Nf6 {[%emt 0:01:18]} 4. Nc3 {[%emt 0:02:48]} d6 {[%emt 0:01:37]} 5. Bxc6+ {[%emt 0:00:34]} bxc6 {[%emt 0:00:06]} 6. h3 {[%emt 0:00:07]} Be7 {[%emt 0:00:16] C48: Four Knights: 4 Bb5, replies other than 4...Bb4.} 7. d4 {[%emt 0:01:23]} exd4 {[%emt 0:00:18]} 8. Nxd4 {[%emt 0:01:05]} Bd7 {[%emt 0:00:09]} 9. Bf4 {[%emt 0:02:05]} O-O {[%emt 0:02:10]} 10. O-O {[%emt 0:00:21]} c5 {[%emt 0:04:15]} 11. Nf3 {[%emt 0:01:59]} Bc6 {[%emt 0:00:26]} 12. Re1 {[%emt 0:01:31]} Rb8 {[%emt 0:02:23]} 13. b3 {[%emt 0:01:24] [#]} Rb4 $146 {[%emt 0:01:59]} ({Predecessor:} 13... Nd7 14. e5 Nb6 15. exd6 cxd6 16. Qd3 Rb7 17. a4 a5 18. Rad1 Rd7 19. Re2 h6 {½-½ (63) Azarov,S (2629)-Dzhumaev,M (2549) Kazan 2013}) 14. a3 {[%emt 0:00:30]} Rb8 {[%emt 0:02:09]} 15. e5 {[%emt 0:02:12]} Ne8 {[%emt 0:07:39]} 16. e6 {[%emt 0:03:23]} fxe6 {[%emt 0:00:20]} 17. Bg3 {[%emt 0:05:30]} Bxf3 {[%emt 0:01:56]} 18. gxf3 {[%emt 0:00:07]} Bf6 {[%emt 0:01:56]} 19. Qd3 {[%emt 0:01:25]} Bxc3 {[%emt 0:01:24]} 20. Qxc3 {[%emt 0:00:10]} e5 {[%emt 0:00:26]} 21. Rad1 {[%emt 0:02:17]} Qf6 {[%emt 0:00:37]} 22. Rd3 {[%emt 0:02:03]} g6 {[%emt 0:02:43]} 23. Re4 {[%emt 0:02:22]} Ng7 {[%emt 0:00:57]} 24. Qa5 $2 {[%emt 0:03:24]} (24. f4 $17) 24... Qf7 {[%emt 0:00:59]} 25. Ra4 {[%emt 0:08:38]} Nf5 {[%emt 0:00:52]} 26. Bxe5 $2 {[%emt 0:05:13]} (26. Kg2) 26... dxe5 {[%emt 0:00:36]} 27. Qxc5 {[%emt 0:00:40]} Nd4 {[%emt 0:00:21]} 28. Kg2 {[%emt 0:04:12]} Nxf3 {[%emt 0:00:20]} 29. Rd1 {[%emt 0:03:41]} Nd4 {[%emt 0:03:42]} 30. Rd2 {[%emt 0:01:52]} Qf3+ {[%emt 0:00:48]} 31. Kg1 {[%emt 0:04:18]} Qf4 {[%emt 0:00:46]} 32. Rdxd4 {[%emt 0:01:23]} Qxf2+ {[%emt 0:00:34] Pin} 33. Kh1 {[%emt 0:00:27]} Qf1+ {[%emt 0:00:17] Double Attack} 34. Kh2 {[%emt 0:00:15]} Rf2+ {[%emt 0:00:12]} 0-1

[Event "56th Rubinstein Memorial D 2020"]
[Site "Polanica Zdroj"]
[Date "2020.08.21"]
[Round "7.7"]
[White "Grzelak, Piotr"]
[Black "Wawrzyniak, Pawel"]
[Result "0-1"]
[ECO "B12"]
[WhiteElo "1664"]
[BlackElo "1824"]
[Annotator "NA"]
[PlyCount "100"]
[EventDate "2020.08.15"]
[EventType "swiss"]
[EventCountry "POL"]
[SourceTitle "playchess.com"]
[Source "ChessBase"]
[SourceQuality "1"]
[TimeControl "40/5400+30:1800+30"]

1. e4 {[%emt 0:03:46]} c6 {[%emt 0:00:00]} 2. d4 {[%emt 0:00:06]} d5 {[%emt 0:00:00]} 3. e5 {[%emt 0:00:04]} Bf5 {[%emt 0:00:00]} 4. h4 {[%emt 0:00:11]} h5 {[%emt 0:00:54]} 5. Ne2 {[%emt 0:01:30]} e6 {[%emt 0:05:14]} 6. Ng3 {[%emt 0:03:11]} Bg6 {[%emt 0:00:45]} 7. Bd3 {[%emt 0:00:26] has lost popularity (7.Be2).} Bxd3 {[%emt 0:00:29] B12: Caro-Kann: Advance Variation.} 8. Qxd3 {[%emt 0:00:03]} c5 {[%emt 0:07:48]} 9. c3 {[%emt 0:01:07]} Qb6 {[%emt 0:00:15]} 10. O-O {[%emt 0:01:44]} Nc6 {[%emt 0:10:39]} 11. Be3 {[%emt 0:01:21]} (11. Ne2 $1 $11) 11... Qxb2 {[%emt 0:26:19]} 12. Nd2 {[%emt 0:02:43]} c4 {[%emt 0:16:17] [#]} 13. Rfb1 $146 {[%emt 0:00:27]} ({Predecessor:} 13. Nxc4 dxc4 14. Qxc4 Qa3 15. Rab1 Qe7 16. Bg5 Qd7 17. Ne4 Rc8 18. Qe2 Na5 19. Rfd1 {0-1 (33) Luz,A (2165)-Molina,R (2431) Florianopolis 2020}) 13... Qa3 {[%emt 0:00:14]} ({Much worse is} 13... cxd3 $6 14. Rxb2 b6 15. Nf3 $11) ({Black should try} 13... Qxa1 $17 14. Qc2 {[#]} Qxb1+ $1 {[%mdl 512]} 15. Qxb1 O-O-O) 14. Qc2 {[%emt 0:00:43]} b6 {[%emt 0:03:37]} 15. f4 {[%emt 0:00:25]} g6 {[%emt 0:00:54]} 16. Nf3 {[%emt 0:01:57]} Nh6 {[%emt 0:02:21]} 17. Ng5 {[%emt 0:04:36]} (17. Nf1 $17 {is a better defense.}) 17... Ne7 {[%emt 0:08:52]} 18. Bc1 {[%emt 0:02:21]} Qa6 {[%emt 0:00:46]} 19. a4 {[%emt 0:01:02]} Nhf5 {[%emt 0:00:17]} 20. Nxf5 {[%emt 0:00:50]} Nxf5 {[%emt 0:00:02]} 21. a5 {[%emt 0:00:24]} b5 {[%emt 0:01:09]} 22. Nf3 {[%emt 0:04:37]} Be7 {[%emt 0:00:26]} 23. Ba3 {[%emt 0:01:13]} Nxh4 {[%emt 0:06:39]} 24. Nxh4 {[%emt 0:00:32]} Bxh4 {[%emt 0:00:01]} 25. Bd6 {[%emt 0:01:58]} Be7 {[%emt 0:01:23]} 26. Bxe7 {[%emt 0:00:20]} Kxe7 {[%emt 0:00:01]} 27. Qb2 {[%emt 0:03:24]} Rab8 {[%emt 0:01:59]} 28. Qa3+ {[%emt 0:00:59]} Kd7 {[%emt 0:00:13]} 29. Rb2 {[%emt 0:00:19]} Qc6 {[%emt 0:03:11]} 30. a6 {[%emt 0:00:33]} Rb6 {[%emt 0:00:50]} 31. Rb4 {[%emt 0:00:46]} Rhb8 {[%emt 0:00:21]} 32. Kf2 {[%emt 0:01:26]} Qc8 {[%emt 0:01:34]} 33. g3 {[%emt 0:01:10]} Rc6 {[%emt 0:00:52]} 34. Rab1 {[%emt 0:02:13]} Qxa6 {[%emt 0:00:49]} 35. Qc1 {[%emt 0:00:27]} Rcb6 {[%emt 0:00:34]} 36. Ra1 {[%emt 0:00:34]} Qb7 {[%emt 0:00:12]} 37. Ra5 {[%emt 0:01:15]} a6 {[%emt 0:00:47]} 38. Qa3 {[%emt 0:00:59]} Qc6 {[%emt 0:00:26]} 39. Rb1 {[%emt 0:01:20]} Ra8 {[%emt 0:00:50]} 40. Qb4 {[%emt 0:00:13]} Qc8 {[%emt 0:00:27]} 41. Rba1 {[%emt 0:30:11]} Qf8 {[%emt 0:30:22]} 42. Qb1 {[%emt 0:01:32]} Kc7 {[%emt 0:00:38]} 43. Qa2 {[%emt 0:01:26]} Kb7 {[%emt 0:00:23]} 44. Rb1 {[%emt 0:00:29]} Qe7 {[%emt 0:00:26]} 45. Kf3 {[%emt 0:00:59]} g5 {[%emt 0:00:42]} 46. Rh1 {[%emt 0:00:42]} Rh8 {[%emt 0:00:26]} 47. Ra1 {[%emt 0:00:18] [#]} Ra8 $2 {[%emt 0:00:45]} (47... g4+ $1 $19 48. Kg2 Ra8) 48. Rh1 $1 {[%emt 0:00:23]} h4 {[%emt 0:00:40]} 49. gxh4 {[%emt 0:00:42]} gxh4 {[%emt 0:00:02]} 50. Qg2 $19 {[%emt 0:00:48]} b4 {[%emt 0:00:17]} 0-1

[Event "56th Rubinstein Memorial D 2020"]
[Site "Polanica Zdroj"]
[Date "2020.08.21"]
[Round "7.8"]
[White "Podgorski, Maciej"]
[Black "Bialik, Nikodem"]
[Result "1-0"]
[ECO "C18"]
[WhiteElo "1810"]
[BlackElo "1552"]
[Annotator "NA"]
[PlyCount "91"]
[EventDate "2020.08.15"]
[EventType "swiss"]
[EventCountry "POL"]
[SourceTitle "playchess.com"]
[Source "ChessBase"]
[SourceQuality "1"]
[TimeControl "40/5400+30:1800+30"]

{[%evp 22,79,34,32,30,25,39,37,47,16,32767,32767,76,33,32767,32767,32767,35,224,32767,216,276,307,32767,32767,316,32767,32767,319,359,372,381,695,1023,1308,515,32767,32767,573,411,541,675,593,438,32767,32767,447,519,511,591,612,568,570,570,562,683,1050,1070,1511,1934]} 1. e4 {[%emt 0:08:27]} e6 {[%emt 0:00:00]} 2. d4 {[%emt 0:00:05]} d5 {[%emt 0:00:00]} 3. Nc3 {[%emt 0:00:05]} Bb4 {[%emt 0:00:00]} 4. e5 {[%emt 0:00:04]} c5 {[%emt 0:00:04]} 5. a3 {[%emt 0:00:05]} Bxc3+ {[%emt 0:00:49]} 6. bxc3 {[%emt 0:00:07]} Qc7 {[%emt 0:00:24]} 7. h4 {[%emt 0:00:24] C18: French: 3 Nc3 Bb4: Main line: 7 h4 and 7 Qg4.} cxd4 {[%emt 0:02:10]} 8. cxd4 {[%emt 0:00:06]} Ne7 {[%emt 0:00:26]} 9. Nf3 {[%emt 0:00:52]} b6 {[%emt 0:00:53]} 10. h5 {[%emt 0:00:59]} h6 {[%emt 0:00:30] [#]} 11. a4 $146 {[%emt 0:00:25]} ({Predecessor:} 11. Bb5+ Bd7 12. Bd3 Bc8 13. O-O Ba6 14. a4 Bxd3 15. cxd3 Nbc6 16. Qd2 O-O 17. Ba3 {1-0 (65) Poetz,F (2416)-Ganaus,H (2287) Linz 2011}) 11... Nbc6 {[%emt 0:01:54]} 12. Ba3 {[%emt 0:00:30]} Na5 {[%emt 0:01:45]} 13. Bb4 {[%emt 0:03:22]} Nc4 {[%emt 0:01:11]} 14. Nd2 {[%emt 0:00:20]} Ba6 {[%emt 0:02:06]} 15. Rh3 {[%emt 0:03:43]} Nb2 {[%emt 0:02:19]} 16. Qc1 {[%emt 0:02:28]} Bxf1 {[%emt 0:00:55]} 17. Kxf1 {[%emt 0:00:30]} Nc4 {[%emt 0:00:17]} 18. Kg1 {[%emt 0:00:47]} Rc8 {[%emt 0:01:09]} 19. c3 {[%emt 0:06:10]} Nc6 $2 {[%emt 0:00:58]} (19... Na5 $14) 20. Nxc4 {[%emt 0:00:16]} dxc4 {[%emt 0:00:13]} 21. Bd6 {[%emt 0:00:04]} Qd7 {[%emt 0:03:08]} 22. Rg3 {[%emt 0:00:06]} Ne7 {[%emt 0:06:36]} 23. Bxe7 $1 {[%emt 0:00:35]} ({Not} 23. Rxg7 Nf5 $16 {[%mdl 64] Double Attack}) 23... Qxe7 {[%emt 0:00:20]} 24. Rxg7 {[%emt 0:00:06]} Kf8 {[%emt 0:01:11]} 25. Rg4 {[%emt 0:00:18]} Rb8 {[%emt 0:01:10]} 26. Qf4 {[%emt 0:00:05]} b5 $2 {[%emt 0:01:55]} (26... Rd8 27. Rg6 Ke8) 27. axb5 {[%emt 0:00:06]} Rxb5 {[%emt 0:00:12] [#]} 28. Rg6 {[%emt 0:00:31]} (28. Rxa7 $142 $1 {[%mdl 512]} Qxa7 {[#]} 29. Qf6 $1 {[%mdl 512]} Rb1+ 30. Kh2) 28... Ke8 {[%emt 0:03:26]} 29. Rxh6 {[%emt 0:00:12]} Rg8 {[%emt 0:00:04]} 30. Qf3 {[%emt 0:01:33]} Rb8 {[%emt 0:01:18]} 31. Rf6 {[%emt 0:00:38]} Qb7 {[%emt 0:00:51]} 32. Qxb7 {[%emt 0:02:32]} Rxb7 {[%emt 0:00:04]} 33. Ra4 {[%emt 0:00:19]} Rc7 {[%emt 0:01:33]} 34. h6 {[%emt 0:00:35]} Ke7 {[%emt 0:01:45]} 35. f4 {[%emt 0:00:35]} Rb7 {[%emt 0:03:30]} 36. f5 {[%emt 0:01:06]} exf5 {[%emt 0:05:07]} 37. Rxf5 {[%emt 0:00:08]} Rc8 {[%emt 0:03:06]} 38. Ra6 {[%emt 0:01:13]} Rb1+ {[%emt 0:01:04]} 39. Rf1 {[%emt 0:01:13]} Rb7 $18 {[%emt 0:00:45]} 40. Raf6 {[%emt 0:00:07]} Rf8 {[%emt 0:01:20]} 41. e6 {[%emt 0:30:08]} Ke8 {[%emt 0:31:52]} 42. h7 {[%emt 0:00:14]} a5 {[%emt 0:00:35]} 43. Rxf7 {[%emt 0:00:21]} Rbxf7 {[%emt 0:00:12]} 44. Rxf7 {[%emt 0:00:07]} Rh8 {[%emt 0:00:07]} 45. Ra7 Rf8 {[%emt 0:00:36]} 46. Ra8+ {[%emt 0:00:23]} 1-0

[Event "56th Rubinstein Memorial D 2020"]
[Site "Polanica Zdroj"]
[Date "2020.08.21"]
[Round "7.9"]
[White "Ciborowski, Konrad Jr"]
[Black "Sypien, Natan"]
[Result "0-1"]
[ECO "B00"]
[WhiteElo "1405"]
[BlackElo "1794"]
[Annotator "NA"]
[PlyCount "78"]
[EventDate "2020.08.15"]
[EventType "swiss"]
[EventCountry "POL"]
[SourceTitle "playchess.com"]
[Source "ChessBase"]
[SourceQuality "1"]
[TimeControl "40/5400+30:1800+30"]

1. e4 {[%emt 0:00:00]} b6 {[%emt 0:00:00]} 2. d4 {[%emt 0:00:46]} Bb7 {[%emt 0:00:00]} 3. Nc3 {[%emt 0:00:32]} e6 {[%emt 0:00:00]} 4. f4 {[%emt 0:02:02]} Bb4 {[%emt 0:00:06]} 5. Bd3 {[%emt 0:00:07]} f5 {[%emt 0:09:39]} 6. Qe2 {[%emt 0:07:28]} fxe4 {[%emt 0:00:30]} 7. Bxe4 {[%emt 0:00:30]} Bxe4 {[%emt 0:00:30]} 8. Qxe4 {[%emt 0:00:30]} Bxc3+ {[%emt 0:00:30]} 9. bxc3 {[%emt 0:00:30]} Nc6 {[%emt 0:00:30]} 10. Nf3 {[%emt 0:00:30]} Nf6 {[%emt 0:00:30]} 11. Qd3 {[%emt 0:00:30]} d5 {[%emt 0:00:30]} 12. O-O {[%emt 0:00:30]} O-O {[%emt 0:00:30]} 13. Ng5 {[%emt 0:00:30]} Qd7 {[%emt 0:00:30]} 14. Re1 {[%emt 0:00:30]} Rfe8 {[%emt 0:00:30]} 15. Qh3 {[%emt 0:00:30]} Nd8 {[%emt 0:00:30]} 16. a4 {[%emt 0:00:30]} h6 {[%emt 0:00:30]} 17. Nf3 {[%emt 0:00:30]} Nc6 {[%emt 0:00:30]} 18. Re2 {[%emt 0:00:30]} Ne4 {[%emt 0:00:30]} 19. Nd2 {[%emt 0:00:30]} Nxd2 {[%emt 0:00:30]} 20. Bxd2 {[%emt 0:00:30]} Na5 {[%emt 0:00:30]} 21. Kh1 {[%emt 0:00:30]} Qf7 {[%emt 0:00:30]} 22. Rg1 {[%emt 0:00:30]} Nc4 {[%emt 0:00:30]} 23. Bc1 {[%emt 0:00:30]} Nd6 {[%emt 0:00:30]} 24. Re5 {[%emt 0:00:30]} Ne4 {[%emt 0:00:30]} 25. Qf3 {[%emt 0:00:30]} c5 {[%emt 0:00:30]} 26. g4 {[%emt 0:00:30]} cxd4 {[%emt 0:00:30]} 27. g5 {[%emt 0:00:30]} Nxg5 {[%emt 0:00:30]} 28. Qe2 {[%emt 0:00:30]} Ne4 {[%emt 0:00:30]} 29. cxd4 {[%emt 0:00:30]} Rac8 {[%emt 0:00:30]} 30. Qg2 {[%emt 0:00:30]} Kh7 {[%emt 0:00:30]} 31. f5 {[%emt 0:00:30]} exf5 {[%emt 0:00:30]} 32. Rxf5 {[%emt 0:00:30]} Nf6 {[%emt 0:00:30]} 33. Rgf1 {[%emt 0:00:30]} Qg6 {[%emt 0:00:30]} 34. Qf3 {[%emt 0:00:30]} Re4 {[%emt 0:00:30]} 35. Bg5 {[%emt 0:00:30]} hxg5 {[%emt 0:00:30]} 36. Rxf6 {[%emt 0:00:30]} Qxf6 {[%emt 0:00:30]} 37. Qh3+ {[%emt 0:00:30]} Rh4 {[%emt 0:00:30]} 38. Qf3 {[%emt 0:45:39]} Re4 {[%emt 0:56:40]} 39. Qh3+ {[%emt 0:02:38]} Rh4 {[%emt 0:00:04]} 0-1

[Event "56th Rubinstein Memorial D 2020"]
[Site "Polanica Zdroj"]
[Date "2020.08.21"]
[Round "7.9"]
[White "Ciborowski, Konrad Jr"]
[Black "Sypien, Natan"]
[Result "*"]
[ECO "B00"]
[WhiteElo "1405"]
[BlackElo "1794"]
[Annotator "NA RC"]
[PlyCount "21"]
[EventDate "2020.08.15"]
[EventType "swiss"]
[EventCountry "POL"]
[SourceTitle "playchess.com"]
[Source "ChessBase"]
[SourceQuality "1"]
[TimeControl "40/5400+30:1800+30"]

1. e4 {[%emt 0:00:00]} b6 {[%emt 0:00:00]} 2. d4 {[%emt 0:00:46]} Bb7 {[%emt 0:00:00]} 3. Nc3 {[%emt 0:00:32]} e6 {[%emt 0:00:00]} 4. f4 {[%emt 0:02:02]} Bb4 {[%emt 0:00:06]} 5. Bd3 {[%emt 0:00:07]} f5 {[%emt 0:09:39]} 6. Qe2 {[%emt 0:07:28]} Bxc3+ {[%emt 0:00:30]} 7. bxc3 {[%emt 0:00:30]} fxe4 {[%emt 0:00:30]} 8. Bxe4 {[%emt 0:00:30]} Bxe4 {[%emt 0:00:30]} 9. Qxe4 Nc6 {[%emt 0:00:30]} 10. Nf3 {[%emt 0:01:00]} Nf6 {[%emt 0:00:30]} 11. Qd3 {[%emt 0:00:30]} *